[Event "Titled Tuesday Blitz March 28 Early 2023"]
[White "Real_OceanStorm"]
[Black "Rosen, Eric"]
[BlackFideId "2032562"]
[WhiteElo "2788"]
[BlackElo "2331"]
[Result "1-0"]
[Round "07"]
[TimeControl "180+2"]
[Date "2023.03.28"]
[WhiteClock "0:00:02"]
[BlackClock "0:00:02"]

1. e4 {[%clk 0:02:58]}  c5 {[%clk 0:02:56]} 2. Nf3 {[%clk 0:02:58]}  Nc6 {[%clk 0:02:56]} 3. c3 {[%clk 0:02:59]}  d5 {[%clk 0:02:55]} 4. exd5 {[%clk 0:02:59]}  Qxd5 {[%clk 0:02:56]} 5. Na3 {[%clk 0:02:59]}  Nf6 {[%clk 0:02:55]} 6. Bc4 {[%clk 0:02:59]}  Qd8 {[%clk 0:02:46]} 7. d3 {[%clk 0:02:59]}  e6 {[%clk 0:02:44]} 8. O-O {[%clk 0:02:58]}  Be7 {[%clk 0:02:44]} 9. Bb3 {[%clk 0:02:57]}  O-O {[%clk 0:02:43]} 10. Bf4 {[%clk 0:02:57]}  b6 {[%clk 0:02:41]} 11. Nb5 {[%clk 0:02:53]}  Bb7 {[%clk 0:02:38]} 12. d4 {[%clk 0:02:52]}  a6 {[%clk 0:02:32]} 13. Nc7 {[%clk 0:02:12]}  Rc8 {[%clk 0:02:29]} 14. Nxe6 {[%clk 0:02:03]}  fxe6 {[%clk 0:02:26]} 15. Bxe6+ {[%clk 0:01:59]}  Kh8 {[%clk 0:02:24]} 16. Bxc8 {[%clk 0:01:57]}  Qxc8 {[%clk 0:02:21]} 17. Bg5 {[%clk 0:01:56]}  cxd4 {[%clk 0:02:20]} 18. cxd4 {[%clk 0:01:56]}  Nb4 {[%clk 0:02:19]} 19. a3 {[%clk 0:01:56]}  Nbd5 {[%clk 0:02:19]} 20. Rc1 {[%clk 0:01:56]}  Qf5 {[%clk 0:02:16]} 21. Re1 {[%clk 0:01:51]}  Bd6 {[%clk 0:02:12]} 22. Qc2 {[%clk 0:01:48]}  Qg4 {[%clk 0:02:03]} 23. h3 {[%clk 0:01:48]}  Qh5 {[%clk 0:02:03]} 24. Qb3 {[%clk 0:01:40]}  b5 {[%clk 0:01:55]} 25. Bd2 {[%clk 0:01:36]}  Nf4 {[%clk 0:01:53]} 26. Bxf4 {[%clk 0:01:27]}  Bxf4 {[%clk 0:01:53]} 27. Rc5 {[%clk 0:01:27]}  Qg6 {[%clk 0:01:48]} 28. Nh4 {[%clk 0:01:26]}  Qf7 {[%clk 0:01:14]} 29. Qxf7 {[%clk 0:01:24]}  Rxf7 {[%clk 0:01:15]} 30. Re6 {[%clk 0:01:18]}  g6 {[%clk 0:00:57]} 31. Nf3 {[%clk 0:01:13]}  Nd7 {[%clk 0:00:31]} 32. Rc3 {[%clk 0:01:11]}  a5 {[%clk 0:00:29]} 33. Rb3 {[%clk 0:01:10]}  Bd5 {[%clk 0:00:28]} 34. Re8+ {[%clk 0:01:08]}  Kg7 {[%clk 0:00:24]} 35. Rxb5 {[%clk 0:01:05]}  Nf6 {[%clk 0:00:19]} 36. Rc8 {[%clk 0:00:49]}  a4 {[%clk 0:00:16]} 37. Ne5 {[%clk 0:00:48]}  Re7 {[%clk 0:00:15]} 38. Ra5 {[%clk 0:00:29]}  Bb3 {[%clk 0:00:13]} 39. Nd3 {[%clk 0:00:24]}  Bd6 {[%clk 0:00:10]} 40. Rc6 {[%clk 0:00:23]}  Rd7 {[%clk 0:00:03]} 41. Ne5 {[%clk 0:00:11]}  Bxe5 {[%clk 0:00:02]} 42. dxe5 {[%clk 0:00:11]}  Rd1+ {[%clk 0:00:03]} 43. Kh2 {[%clk 0:00:11]}  Ne4 {[%clk 0:00:03]} 44. Ra7+ {[%clk 0:00:11]}  Kh6 {[%clk 0:00:03]} 45. f3 {[%clk 0:00:12]}  Nf2 {[%clk 0:00:03]} 46. Rd6 {[%clk 0:00:04]}  Rb1 {[%clk 0:00:02]} 47. e6 {[%clk 0:00:04]}  Kg5 {[%clk 0:00:02]} 48. Rxh7 {[%clk 0:00:03]}  Kf4 {[%clk 0:00:02]} 49. Rd4+ {[%clk 0:00:02]}  Ke5 {[%clk 0:00:02]} 50. e7 {[%clk 0:00:02]} 1-0


[Site "https://www.chess.com"]

[Event "Titled Tuesday Blitz March 28 Early 2023"]
[White "Karthik, Venkataraman"]
[Black "Crevatin, Leo"]
[WhiteFideId "25006479"]
[BlackFideId "1726307"]
[WhiteElo "2419"]
[BlackElo "2190"]
[Result "0-1"]
[Round "07"]
[TimeControl "180+2"]
[Date "2023.03.28"]
[WhiteClock "0:00:18"]
[BlackClock "0:00:06"]

1. Nf3 {[%clk 0:03:00]}  Nf6 {[%clk 0:02:58]} 2. g3 {[%clk 0:03:01]}  b6 {[%clk 0:02:58]} 3. Bg2 {[%clk 0:03:01]}  Bb7 {[%clk 0:02:58]} 4. O-O {[%clk 0:03:02]}  g6 {[%clk 0:02:59]} 5. c4 {[%clk 0:02:59]}  Bg7 {[%clk 0:02:59]} 6. d4 {[%clk 0:02:59]}  O-O {[%clk 0:02:59]} 7. Qc2 {[%clk 0:03:00]}  Be4 {[%clk 0:02:44]} 8. Qb3 {[%clk 0:02:58]}  Bb7 {[%clk 0:02:42]} 9. Nc3 {[%clk 0:02:51]}  e6 {[%clk 0:02:38]} 10. Qc2 {[%clk 0:02:49]}  d6 {[%clk 0:02:37]} 11. e4 {[%clk 0:02:49]}  Nbd7 {[%clk 0:02:36]} 12. h3 {[%clk 0:02:46]}  e5 {[%clk 0:02:36]} 13. d5 {[%clk 0:02:45]}  a5 {[%clk 0:02:35]} 14. Be3 {[%clk 0:02:44]}  h6 {[%clk 0:02:33]} 15. a3 {[%clk 0:02:43]}  Ba6 {[%clk 0:02:29]} 16. Nd2 {[%clk 0:02:39]}  Nh5 {[%clk 0:02:25]} 17. Qd1 {[%clk 0:02:28]}  Qe8 {[%clk 0:02:25]} 18. Bf3 {[%clk 0:02:25]}  Nhf6 {[%clk 0:02:23]} 19. b4 {[%clk 0:02:25]}  Nh7 {[%clk 0:02:21]} 20. Nb5 {[%clk 0:02:22]}  Bxb5 {[%clk 0:02:10]} 21. cxb5 {[%clk 0:02:23]}  axb4 {[%clk 0:02:05]} 22. axb4 {[%clk 0:02:21]}  f5 {[%clk 0:01:59]} 23. Rxa8 {[%clk 0:02:16]}  Qxa8 {[%clk 0:02:00]} 24. Nc4 {[%clk 0:02:00]}  Ndf6 {[%clk 0:01:34]} 25. Qc2 {[%clk 0:01:50]}  fxe4 {[%clk 0:01:28]} 26. Bxe4 {[%clk 0:01:50]}  Nxe4 {[%clk 0:01:28]} 27. Qxe4 {[%clk 0:01:51]}  Qe8 {[%clk 0:01:29]} 28. Na3 {[%clk 0:01:41]}  Nf6 {[%clk 0:01:28]} 29. Qc4 {[%clk 0:01:39]}  Qd7 {[%clk 0:01:23]} 30. Kg2 {[%clk 0:01:37]}  Rf7 {[%clk 0:01:22]} 31. Nb1 {[%clk 0:01:37]}  Qf5 {[%clk 0:01:16]} 32. Nc3 {[%clk 0:01:34]}  Kh7 {[%clk 0:01:14]} 33. g4 {[%clk 0:01:29]}  Qd7 {[%clk 0:01:10]} 34. Rc1 {[%clk 0:01:26]}  h5 {[%clk 0:01:05]} 35. g5 {[%clk 0:01:21]}  Ng8 {[%clk 0:01:05]} 36. Ne4 {[%clk 0:01:14]}  Qf5 {[%clk 0:01:03]} 37. Ng3 {[%clk 0:01:08]}  Qf3+ {[%clk 0:01:03]} 38. Kg1 {[%clk 0:01:09]}  Ne7 {[%clk 0:00:58]} 39. Ne4 {[%clk 0:00:32]}  Qxh3 {[%clk 0:00:48]} 40. Nf6+ {[%clk 0:00:32]}  Bxf6 {[%clk 0:00:47]} 41. gxf6 {[%clk 0:00:33]}  Nf5 {[%clk 0:00:33]} 42. Qe4 {[%clk 0:00:32]}  Nh4 {[%clk 0:00:27]} 43. f4 {[%clk 0:00:28]}  Qg3+ {[%clk 0:00:16]} 44. Kf1 {[%clk 0:00:28]}  Nf5 {[%clk 0:00:12]} 45. Bf2 {[%clk 0:00:28]}  Qxf4 {[%clk 0:00:11]} 46. Qxf4 {[%clk 0:00:26]}  exf4 {[%clk 0:00:11]} 47. Rc4 {[%clk 0:00:24]}  g5 {[%clk 0:00:12]} 48. Ke2 {[%clk 0:00:23]}  Kg6 {[%clk 0:00:12]} 49. Kd3 {[%clk 0:00:22]}  Kxf6 {[%clk 0:00:12]} 50. Be1 {[%clk 0:00:20]}  Kg6 {[%clk 0:00:09]} 51. Bc3 {[%clk 0:00:20]}  Re7 {[%clk 0:00:10]} 52. Bd2 {[%clk 0:00:20]}  h4 {[%clk 0:00:10]} 53. Rc1 {[%clk 0:00:19]}  h3 {[%clk 0:00:10]} 54. Rh1 {[%clk 0:00:19]}  Rh7 {[%clk 0:00:10]} 55. Rh2 {[%clk 0:00:19]}  Ng3 {[%clk 0:00:08]} 56. Be1 {[%clk 0:00:19]}  Kf5 {[%clk 0:00:09]} 57. Bf2 {[%clk 0:00:19]}  Kg4 {[%clk 0:00:09]} 58. Kd4 {[%clk 0:00:20]}  Nf5+ {[%clk 0:00:07]} 59. Ke4 {[%clk 0:00:20]}  Re7+ {[%clk 0:00:06]} 60. Kd3 {[%clk 0:00:20]}  Nh4 {[%clk 0:00:06]} 61. Rh1 {[%clk 0:00:20]}  Nf3 {[%clk 0:00:06]} 62. Rf1 {[%clk 0:00:19]}  Kf5 {[%clk 0:00:05]} 63. Rh1 {[%clk 0:00:17]}  g4 {[%clk 0:00:06]} 64. Ra1 {[%clk 0:00:17]}  g3 {[%clk 0:00:05]} 65. Bd4 {[%clk 0:00:17]}  Nxd4 {[%clk 0:00:05]} 66. Kxd4 {[%clk 0:00:18]}  h2 {[%clk 0:00:06]} 0-1


[Site "https://www.chess.com"]

[Event "Titled Tuesday Blitz March 28 Early 2023"]
[White "Jain Kashish Manoj"]
[Black "Wagner, Dennis"]
[WhiteFideId "35081098"]
[BlackFideId "24650684"]
[WhiteElo "2191"]
[BlackElo "2470"]
[Result "0-1"]
[Round "07"]
[TimeControl "180+2"]
[Date "2023.03.28"]
[WhiteClock "0:00:05"]
[BlackClock "0:00:39"]

1. e4 {[%clk 0:03:00]}  c5 {[%clk 0:02:59]} 2. Nf3 {[%clk 0:02:47]}  d6 {[%clk 0:03:00]} 3. d4 {[%clk 0:02:38]}  cxd4 {[%clk 0:03:01]} 4. Qxd4 {[%clk 0:02:38]}  Nf6 {[%clk 0:03:00]} 5. Bg5 {[%clk 0:02:38]}  Nc6 {[%clk 0:03:00]} 6. Bb5 {[%clk 0:02:36]}  Bd7 {[%clk 0:03:00]} 7. Bxc6 {[%clk 0:02:33]}  Bxc6 {[%clk 0:03:01]} 8. Nc3 {[%clk 0:02:28]}  e6 {[%clk 0:03:01]} 9. O-O-O {[%clk 0:02:27]}  Be7 {[%clk 0:03:02]} 10. Bxf6 {[%clk 0:02:28]}  Bxf6 {[%clk 0:03:02]} 11. Qxd6 {[%clk 0:02:28]}  Qxd6 {[%clk 0:02:55]} 12. Rxd6 {[%clk 0:02:29]}  Bxc3 {[%clk 0:02:54]} 13. bxc3 {[%clk 0:02:30]}  Bxe4 {[%clk 0:02:52]} 14. Ne5 {[%clk 0:02:30]}  Rc8 {[%clk 0:02:34]} 15. Rd4 {[%clk 0:00:38]}  Bc6 {[%clk 0:02:04]} 16. Rhd1 {[%clk 0:00:15]}  O-O {[%clk 0:02:03]} 17. f3 {[%clk 0:00:15]}  Be8 {[%clk 0:01:54]} 18. Kb2 {[%clk 0:00:11]}  f6 {[%clk 0:01:53]} 19. Nd3 {[%clk 0:00:09]}  e5 {[%clk 0:01:52]} 20. Rb4 {[%clk 0:00:09]}  b6 {[%clk 0:01:47]} 21. Nf2 {[%clk 0:00:04]}  Bf7 {[%clk 0:01:32]} 22. Ne4 {[%clk 0:00:04]}  Rfd8 {[%clk 0:01:33]} 23. Rxd8+ {[%clk 0:00:04]}  Rxd8 {[%clk 0:01:34]} 24. Ra4 {[%clk 0:00:05]}  Rd7 {[%clk 0:01:34]} 25. c4 {[%clk 0:00:05]}  Rc7 {[%clk 0:01:31]} 26. c5 {[%clk 0:00:05]}  bxc5 {[%clk 0:01:28]} 27. Ra5 {[%clk 0:00:05]}  c4 {[%clk 0:01:27]} 28. Kc3 {[%clk 0:00:06]}  h5 {[%clk 0:01:25]} 29. Nd6 {[%clk 0:00:06]}  Be6 {[%clk 0:01:23]} 30. Nb5 {[%clk 0:00:06]}  Rc5 {[%clk 0:01:22]} 31. a4 {[%clk 0:00:07]}  h4 {[%clk 0:01:17]} 32. Rxa7 {[%clk 0:00:06]}  e4 {[%clk 0:01:16]} 33. fxe4 {[%clk 0:00:07]}  Rg5 {[%clk 0:01:17]} 34. Nc7 {[%clk 0:00:06]}  Bf7 {[%clk 0:01:16]} 35. a5 {[%clk 0:00:07]}  Kh7 {[%clk 0:00:56]} 36. a6 {[%clk 0:00:07]}  Rxg2 {[%clk 0:00:47]} 37. Rb7 {[%clk 0:00:06]}  Bg6 {[%clk 0:00:46]} 38. a7 {[%clk 0:00:06]}  Rxc2+ {[%clk 0:00:43]} 39. Kxc2 {[%clk 0:00:03]}  Bxe4+ {[%clk 0:00:43]} 40. Kc3 {[%clk 0:00:02]}  Bxb7 {[%clk 0:00:44]} 41. a8=Q {[%clk 0:00:03]}  Bxa8 {[%clk 0:00:44]} 42. Nxa8 {[%clk 0:00:04]}  g5 {[%clk 0:00:44]} 43. Nb6 {[%clk 0:00:04]}  g4 {[%clk 0:00:44]} 44. Nxc4 {[%clk 0:00:05]}  g3 {[%clk 0:00:39]} 45. hxg3 {[%clk 0:00:05]}  h3 {[%clk 0:00:39]} 0-1


[Site "https://www.chess.com"]

[Event "Titled Tuesday Blitz March 28 Early 2023"]
[White "Csonka, Balazs"]
[Black "Yaniuk, Volodymyr"]
[WhiteFideId "742910"]
[BlackFideId "14133083"]
[WhiteElo "2404"]
[BlackElo "2141"]
[Result "1-0"]
[Round "07"]
[TimeControl "180+2"]
[Date "2023.03.28"]
[WhiteClock "0:00:10"]
[BlackClock "0:01:08"]

1. d4 {[%clk 0:03:00]}  d5 {[%clk 0:03:00]} 2. Bf4 {[%clk 0:02:59]}  h5 {[%clk 0:02:59]} 3. Nf3 {[%clk 0:02:57]}  c6 {[%clk 0:02:57]} 4. e3 {[%clk 0:02:53]}  Bf5 {[%clk 0:02:57]} 5. c4 {[%clk 0:02:36]}  e6 {[%clk 0:02:55]} 6. Qb3 {[%clk 0:02:30]}  Qb6 {[%clk 0:02:49]} 7. Nc3 {[%clk 0:02:24]}  Bb4 {[%clk 0:02:41]} 8. Be2 {[%clk 0:02:11]}  Nd7 {[%clk 0:02:36]} 9. O-O {[%clk 0:02:10]}  Ngf6 {[%clk 0:02:28]} 10. Na4 {[%clk 0:01:32]}  Qa5 {[%clk 0:02:21]} 11. a3 {[%clk 0:01:17]}  Be7 {[%clk 0:02:14]} 12. Qxb7 {[%clk 0:01:13]}  O-O {[%clk 0:02:12]} 13. Nc3 {[%clk 0:00:54]}  Rfc8 {[%clk 0:01:41]} 14. c5 {[%clk 0:00:47]}  e5 {[%clk 0:01:20]} 15. Nxe5 {[%clk 0:00:43]}  Rcb8 {[%clk 0:01:10]} 16. Nxc6 {[%clk 0:00:19]}  Qxc3 {[%clk 0:01:02]} 17. Qxb8+ {[%clk 0:00:15]}  Nxb8 {[%clk 0:00:56]} 18. Nxe7+ {[%clk 0:00:15]}  Kf8 {[%clk 0:00:57]} 19. bxc3 {[%clk 0:00:13]}  Kxe7 {[%clk 0:00:58]} 20. Bf3 {[%clk 0:00:11]}  Nbd7 {[%clk 0:00:54]} 21. c4 {[%clk 0:00:10]}  Be4 {[%clk 0:00:53]} 22. cxd5 {[%clk 0:00:10]}  Bxd5 {[%clk 0:00:53]} 23. Bg5 {[%clk 0:00:09]}  Ke6 {[%clk 0:00:52]} 24. Bxf6 {[%clk 0:00:09]}  Nxf6 {[%clk 0:00:53]} 25. Rab1 {[%clk 0:00:08]}  g5 {[%clk 0:00:52]} 26. Rfc1 {[%clk 0:00:08]}  g4 {[%clk 0:00:52]} 27. Bxd5+ {[%clk 0:00:08]}  Kxd5 {[%clk 0:00:53]} 28. c6 {[%clk 0:00:07]}  Rc8 {[%clk 0:00:52]} 29. c7 {[%clk 0:00:08]}  Kd6 {[%clk 0:00:51]} 30. Rb8 {[%clk 0:00:08]}  Rxc7 {[%clk 0:00:51]} 31. Rxc7 {[%clk 0:00:09]}  Kxc7 {[%clk 0:00:52]} 32. Ra8 {[%clk 0:00:09]}  Kb6 {[%clk 0:00:50]} 33. Rf8 {[%clk 0:00:08]}  Ne4 {[%clk 0:00:50]} 34. Rxf7 {[%clk 0:00:08]}  a5 {[%clk 0:00:50]} 35. Rf5 {[%clk 0:00:08]}  h4 {[%clk 0:00:49]} 36. Rf4 {[%clk 0:00:09]}  Nd2 {[%clk 0:00:49]} 37. Rxg4 {[%clk 0:00:08]}  Kb5 {[%clk 0:00:50]} 38. Rxh4 {[%clk 0:00:08]}  Kc4 {[%clk 0:00:51]} 39. Rf4 {[%clk 0:00:07]}  Kd3 {[%clk 0:00:51]} 40. d5 {[%clk 0:00:07]}  Ke2 {[%clk 0:00:49]} 41. Rd4 {[%clk 0:00:07]}  Nb3 {[%clk 0:00:48]} 42. d6 {[%clk 0:00:07]}  Nc5 {[%clk 0:00:47]} 43. h4 {[%clk 0:00:06]}  Nd7 {[%clk 0:00:48]} 44. h5 {[%clk 0:00:07]}  Nf6 {[%clk 0:00:49]} 45. h6 {[%clk 0:00:05]}  Nh7 {[%clk 0:00:49]} 46. d7 {[%clk 0:00:05]}  Nf6 {[%clk 0:00:50]} 47. d8=Q {[%clk 0:00:05]}  Ne4 {[%clk 0:00:51]} 48. Rxe4 {[%clk 0:00:04]}  Ke1 {[%clk 0:00:52]} 49. Qd4 {[%clk 0:00:04]}  Ke2 {[%clk 0:00:53]} 50. h7 {[%clk 0:00:04]}  Ke1 {[%clk 0:00:54]} 51. h8=Q {[%clk 0:00:04]}  Ke2 {[%clk 0:00:54]} 52. Qhg7 {[%clk 0:00:05]}  Ke1 {[%clk 0:00:55]} 53. f4 {[%clk 0:00:05]}  Ke2 {[%clk 0:00:56]} 54. f5 {[%clk 0:00:05]}  Ke1 {[%clk 0:00:57]} 55. f6 {[%clk 0:00:06]}  Ke2 {[%clk 0:00:58]} 56. f7 {[%clk 0:00:06]}  Ke1 {[%clk 0:00:59]} 57. f8=Q {[%clk 0:00:07]}  Ke2 {[%clk 0:01:00]} 58. Qgh8 {[%clk 0:00:07]}  a4 {[%clk 0:01:01]} 59. g4 {[%clk 0:00:06]}  Ke1 {[%clk 0:01:01]} 60. Qxa4 {[%clk 0:00:06]}  Ke2 {[%clk 0:01:01]} 61. Qad4 {[%clk 0:00:06]}  Ke1 {[%clk 0:01:02]} 62. g5 {[%clk 0:00:07]}  Ke2 {[%clk 0:01:02]} 63. g6 {[%clk 0:00:07]}  Ke1 {[%clk 0:01:03]} 64. g7 {[%clk 0:00:08]}  Ke2 {[%clk 0:01:04]} 65. g8=Q {[%clk 0:00:08]}  Ke1 {[%clk 0:01:05]} 66. a4 {[%clk 0:00:08]}  Ke2 {[%clk 0:01:06]} 67. a5 {[%clk 0:00:09]}  Ke1 {[%clk 0:01:07]} 68. a6 {[%clk 0:00:09]}  Ke2 {[%clk 0:01:07]} 69. a7 {[%clk 0:00:10]}  Ke1 {[%clk 0:01:08]} 1-0


[Site "https://www.chess.com"]

[Event "Titled Tuesday Blitz March 28 Early 2023"]
[White "Melian, Juan Sebastian"]
[Black "Samant Aditya S"]
[WhiteFideId "3706575"]
[BlackFideId "35080580"]
[WhiteElo "2031"]
[BlackElo "2362"]
[Result "0-1"]
[Round "07"]
[TimeControl "180+2"]
[Date "2023.03.28"]
[WhiteClock "0:00:02"]
[BlackClock "0:00:06"]

1. d4 {[%clk 0:03:00]}  Nf6 {[%clk 0:02:58]} 2. c4 {[%clk 0:03:00]}  e6 {[%clk 0:02:58]} 3. Nc3 {[%clk 0:03:01]}  Bb4 {[%clk 0:02:58]} 4. Qc2 {[%clk 0:03:01]}  d5 {[%clk 0:02:55]} 5. cxd5 {[%clk 0:03:01]}  Qxd5 {[%clk 0:02:56]} 6. Nf3 {[%clk 0:02:46]}  Qf5 {[%clk 0:02:54]} 7. Qxf5 {[%clk 0:02:46]}  exf5 {[%clk 0:02:55]} 8. Bd2 {[%clk 0:02:37]}  c6 {[%clk 0:02:53]} 9. e3 {[%clk 0:02:36]}  Nbd7 {[%clk 0:02:50]} 10. Bc4 {[%clk 0:02:33]}  Nb6 {[%clk 0:02:47]} 11. Bb3 {[%clk 0:02:33]}  a5 {[%clk 0:02:41]} 12. a3 {[%clk 0:02:32]}  Bd6 {[%clk 0:02:35]} 13. O-O {[%clk 0:02:25]}  a4 {[%clk 0:02:34]} 14. Ba2 {[%clk 0:02:22]}  Ke7 {[%clk 0:02:34]} 15. Rfe1 {[%clk 0:02:21]}  Ne4 {[%clk 0:02:34]} 16. Nxe4 {[%clk 0:02:09]}  fxe4 {[%clk 0:02:34]} 17. Ng5 {[%clk 0:02:09]}  f5 {[%clk 0:02:33]} 18. Nf7 {[%clk 0:01:58]}  Re8 {[%clk 0:02:34]} 19. Nxd6 {[%clk 0:01:59]}  Kxd6 {[%clk 0:02:34]} 20. Bb4+ {[%clk 0:01:57]}  Kc7 {[%clk 0:02:34]} 21. Rac1 {[%clk 0:01:58]}  Be6 {[%clk 0:02:34]} 22. Bxe6 {[%clk 0:01:55]}  Rxe6 {[%clk 0:02:35]} 23. Rc5 {[%clk 0:01:51]}  Nd5 {[%clk 0:02:34]} 24. Rec1 {[%clk 0:01:51]}  Kd7 {[%clk 0:02:34]} 25. g3 {[%clk 0:01:46]}  Ree8 {[%clk 0:02:33]} 26. Kg2 {[%clk 0:01:46]}  Ra6 {[%clk 0:02:34]} 27. R1c2 {[%clk 0:01:43]}  Rb6 {[%clk 0:02:32]} 28. Bd2 {[%clk 0:01:42]}  Ra8 {[%clk 0:02:27]} 29. Ba5 {[%clk 0:01:38]}  Rb3 {[%clk 0:02:17]} 30. Bd2 {[%clk 0:01:32]}  Rd3 {[%clk 0:02:13]} 31. Kf1 {[%clk 0:01:25]}  Rb3 {[%clk 0:02:07]} 32. Ke2 {[%clk 0:01:24]}  Ra6 {[%clk 0:02:07]} 33. Kd1 {[%clk 0:01:22]}  Ra8 {[%clk 0:02:05]} 34. Ke2 {[%clk 0:01:06]}  g5 {[%clk 0:02:02]} 35. Bc3 {[%clk 0:01:00]}  h5 {[%clk 0:01:49]} 36. Bd2 {[%clk 0:00:57]}  Ke6 {[%clk 0:01:19]} 37. R5c4 {[%clk 0:00:48]}  Rb6 {[%clk 0:01:12]} 38. Rc5 {[%clk 0:00:46]}  h4 {[%clk 0:01:07]} 39. Ra5 {[%clk 0:00:40]}  Rxa5 {[%clk 0:00:45]} 40. Bxa5 {[%clk 0:00:41]}  Ra6 {[%clk 0:00:45]} 41. Bd2 {[%clk 0:00:41]}  Ra8 {[%clk 0:00:40]} 42. Rc4 {[%clk 0:00:40]}  Kd7 {[%clk 0:00:39]} 43. Kf1 {[%clk 0:00:33]}  b5 {[%clk 0:00:37]} 44. Rc2 {[%clk 0:00:31]}  Rg8 {[%clk 0:00:35]} 45. Rc5 {[%clk 0:00:30]}  Rh8 {[%clk 0:00:30]} 46. Kg2 {[%clk 0:00:30]}  hxg3 {[%clk 0:00:29]} 47. hxg3 {[%clk 0:00:31]}  Rg8 {[%clk 0:00:30]} 48. Kh3 {[%clk 0:00:28]}  Rg6 {[%clk 0:00:28]} 49. Kh2 {[%clk 0:00:22]}  Rf6 {[%clk 0:00:20]} 50. Kg2 {[%clk 0:00:19]}  Kd6 {[%clk 0:00:18]} 51. Bb4 {[%clk 0:00:15]}  Kd7 {[%clk 0:00:17]} 52. Bd2 {[%clk 0:00:15]}  Rh6 {[%clk 0:00:18]} 53. Kg1 {[%clk 0:00:15]}  Rh5 {[%clk 0:00:18]} 54. Kg2 {[%clk 0:00:15]}  Rh7 {[%clk 0:00:18]} 55. Kg1 {[%clk 0:00:14]}  Rf7 {[%clk 0:00:19]} 56. Kg2 {[%clk 0:00:13]}  g4 {[%clk 0:00:18]} 57. Rc1 {[%clk 0:00:11]}  Rh7 {[%clk 0:00:17]} 58. Rc5 {[%clk 0:00:08]}  Rh8 {[%clk 0:00:16]} 59. Be1 {[%clk 0:00:08]}  Kd6 {[%clk 0:00:15]} 60. Bb4 {[%clk 0:00:08]}  Kd7 {[%clk 0:00:15]} 61. Bd2 {[%clk 0:00:08]}  Rc8 {[%clk 0:00:16]} 62. Rc1 {[%clk 0:00:08]}  Nb6 {[%clk 0:00:08]} 63. Rh1 {[%clk 0:00:08]}  Ke6 {[%clk 0:00:08]} 64. Bb4 {[%clk 0:00:05]}  Kd5 {[%clk 0:00:07]} 65. Bc3 {[%clk 0:00:04]}  Kc4 {[%clk 0:00:06]} 66. Rh5 {[%clk 0:00:04]}  Kb3 {[%clk 0:00:04]} 67. Rxf5 {[%clk 0:00:03]}  Nc4 {[%clk 0:00:05]} 68. Rc5 {[%clk 0:00:02]}  Nxb2 {[%clk 0:00:05]} 69. Bxb2 {[%clk 0:00:03]}  Kxb2 {[%clk 0:00:06]} 70. d5 {[%clk 0:00:04]}  Kxa3 {[%clk 0:00:05]} 71. dxc6 {[%clk 0:00:03]}  Kb4 {[%clk 0:00:05]} 72. Re5 {[%clk 0:00:01]}  Rxc6 {[%clk 0:00:04]} 73. Rxe4+ {[%clk 0:00:02]}  Rc4 {[%clk 0:00:05]} 74. Re8 {[%clk 0:00:02]}  a3 {[%clk 0:00:05]} 75. Ra8 {[%clk 0:00:03]}  Kb3 {[%clk 0:00:06]} 76. Rb8 {[%clk 0:00:04]}  b4 {[%clk 0:00:06]} 77. Ra8 {[%clk 0:00:04]}  a2 {[%clk 0:00:06]} 78. Ra7 {[%clk 0:00:02]}  Kb2 {[%clk 0:00:06]} 79. e4 {[%clk 0:00:02]}  Rxe4 {[%clk 0:00:06]} 0-1


[Site "https://www.chess.com"]